[Event "Menorca Open-A 2022"]
[Site "Menorca"]
[Date "2022.04.21"]
[Round "3.10"]
[White "Romanishin, Oleg M"]
[Black "Santos Ruiz, Miguel"]
[Result "1/2-1/2"]
[ECO "E11"]
[WhiteElo "2415"]
[BlackElo "2596"]
[Annotator "TA"]
[PlyCount "71"]
[EventDate "2022.04.20"]
[EventType "swiss"]
[EventCountry "ESP"]
[SourceTitle "playchess.com"]
[Source "ChessBase"]
[SourceQuality "1"]
[TimeControl "5400+30"]

{[%evp 13,71,7,13,0,0,0,0,-35,-45,-29,100,95,147,147,146,147,145,144,147,25,19,16,21,26,33,0,14,0,0,0,41,41,72,52,102,79,79,70,84,76,89,74,92,83,106,101,94,88,93,75,72,81,68,52,52,43,43,45,52,57]} 1. d4 {[%emt 0:00:30] Marin,M} Nf6 {[%emt 0:00:08]} 2. Nf3 {[%emt 0:00:00]} d5 {[%emt 0:00:05]} 3. c4 {[%emt 0:00:00]} e6 {[%emt 0:00:04]} 4. g3 {[%emt 0:00:00]} Bb4+ {[%emt 0:00:04]} 5. Bd2 {[%emt 0:00:00]} Be7 {[%emt 0:00:05]} 6. Bg2 {[%emt 0:00:07]} O-O {[%emt 0:00:09]} 7. O-O {[%emt 0:01:04]} Nbd7 {[%emt 0:00:06]} 8. Nc3 {[%emt 0:13:51] E11: Bogo-Indian.} dxc4 {[%emt 0:01:51]} 9. e4 {[%emt 0:00:19]} c5 {[%emt 0:23:18] [#]} 10. d5 $146 {[%emt 0:25:18] The position is equal.} ({Predecessor:} 10. Bf4 Nb6 11. a4 cxd4 12. Nxd4 Bc5 13. Ndb5 Qxd1 14. Raxd1 Bd7 15. Nc7 Rac8 16. a5 {1-0 (54) Nakamura,H (2814)-Adams,M (2742) Baku 2015 CBM 169 [Marin,M]}) 10... exd5 $1 {[%emt 0:00:58] ...d4 is the strong threat.} 11. e5 {[%emt 0:00:06]} Ng4 {[%emt 0:14:19]} (11... Ne4 $11 12. Nxd5 Nxd2 13. Qxd2 Nb6 14. Nxe7+ Qxe7) 12. Nxd5 $16 {[%emt 0:00:21]} Ndxe5 {[%emt 0:02:15]} (12... Nb6 $142 13. Nxe7+ Qxe7) 13. Nxe5 {[%emt 0:00:07]} Nxe5 {[%emt 0:00:03] [#]} 14. Ba5 $1 {[%emt 0:01:33][%mdl 512]} b6 {[%emt 0:11:45] Threatens to win with ...Bg4.} (14... Qxa5 $2 15. Nxe7+ Kh8 16. Qd6) 15. Nxe7+ {[%emt 0:07:31]} Qxe7 {[%emt 0:00:34] [#]} 16. Bxa8 {[%emt 0:02:54]} (16. Bc3 $1 $16 Bg4 17. f3) 16... Bg4 $11 {[%emt 0:04:42] [#]} 17. f3 $1 {[%emt 0:00:35]} Rxa8 {[%emt 0:01:50]} 18. fxg4 {[%emt 0:04:04]} bxa5 {[%emt 0:00:07]} 19. Qe2 {[%emt 0:04:55]} Re8 {[%emt 0:09:50]} 20. Rae1 {[%emt 0:01:57][%mdl 1024] White has compensation.} h6 {[%emt 0:00:55]} 21. Qe4 {[%emt 0:01:46]} Qc7 {[%emt 0:05:01]} 22. Qd5 {[%emt 0:04:26]} Re7 {[%emt 0:04:31]} 23. Re2 {[%emt 0:05:58] And now Rfe1 would win.} (23. Qa8+ Kh7 $11) 23... Nxg4 {[%emt 0:02:47]} ({Black should try} 23... Kh8 $14) 24. Rfe1 {[%emt 0:00:48][%cal Bf1e1,Be1e2,Be2d2][%mdl 32]} (24. Qxc4 Rxe2 25. Qxe2 Ne5 $14) 24... Rxe2 {[%emt 0:00:10]} 25. Rxe2 $16 {[%emt 0:00:03][%mdl 4096] Endgame KQR-KQN} Nf6 {[%emt 0:00:33] Prevents Re8+.} 26. Qxc4 {[%emt 0:00:44] &Bianco is more active.} Qd6 {[%emt 0:00:27]} 27. Qc3 {[%emt 0:02:13]} h5 {[%emt 0:04:56]} 28. Qd2 {[%emt 0:01:40]} ({Much worse is} 28. Qxa5 $6 Qd4+ 29. Kf1 Ne4 $11) 28... Qc7 {[%emt 0:01:38]} 29. Qe3 {[%emt 0:01:59]} Qd7 {[%emt 0:01:31]} 30. Rd2 {[%emt 0:02:38]} ({And not} 30. Qxc5 Qd1+ 31. Kf2 Ng4+ 32. Kf3 Qf1+ 33. Rf2 Nxf2 34. Qxf2 Qd3+ 35. Qe3 Qd5+ 36. Qe4 Qxa2 37. Qa8+ Kh7 38. Qxa7 Qb3+ 39. Ke4 a4 $17) 30... Qf5 {[%emt 0:00:03]} 31. Qd3 {[%emt 0:03:20]} Qe6 {[%emt 0:01:39][%cal Oh5h4]} 32. b3 {[%emt 0:05:09]} a4 {[%emt 0:03:02]} 33. Qe2 {[%emt 0:01:37] White is slightly better.} (33. bxa4 c4 34. Qe2 Qb6+ 35. Qf2 Qb1+ 36. Qf1 Qb6+ 37. Qf2 Qb1+ 38. Qf1 Qb6+ 39. Qf2 $11) 33... Qb6 {[%emt 0:00:50] Prevents Rd8+.} 34. Qc4 {[%emt 0:01:00]} ({Don't play} 34. bxa4 c4+ 35. Qf2 Qb1+ 36. Qf1 Qb6+ 37. Qf2 Qb1+ 38. Qf1 Qb6+ 39. Qf2 $11) 34... axb3 {[%emt 0:00:11]} 35. axb3 {[%emt 0:00:17]} a5 {[%emt 0:00:30]} 36. Rd1 {[%emt 0:02:17] Weighted Error Value: White=0.13 (very precise) /Black=0.13 (very precise)} 1/2-1/2

[Event "Menorca Open-A 2022"]
[Site "Menorca"]
[Date "2022.04.22"]
[Round "4.1"]
[White "Martirosyan, Haik M."]
[Black "Erigaisi Arjun"]
[Result "1/2-1/2"]
[ECO "D44"]
[WhiteElo "2633"]
[BlackElo "2675"]
[Annotator "TA"]
[PlyCount "52"]
[EventDate "2022.04.20"]
[EventType "swiss"]
[EventCountry "ESP"]
[SourceTitle "playchess.com"]
[Source "ChessBase"]
[SourceQuality "1"]
[TimeControl "5400+30"]

{[%evp 11,52,5,20,19,16,16,21,15,17,17,17,17,11,10,20,18,29,16,11,0,0,0,0,0,0,0,0,0,0,0,0,0,0,0,0,0,0,0,0,0,0,0,-3]} 1. d4 {[%emt 1:31:00]} Nf6 {[%emt 1:31:00]} 2. c4 {[%emt 0:00:30]} e6 {[%emt 0:00:30]} 3. Nf3 {[%emt 0:00:30]} d5 {[%emt 0:00:30]} 4. Nc3 {[%emt 0:00:30]} c6 {[%emt 0:00:30]} 5. Bg5 {[%emt 0:00:30]} dxc4 {[%emt 0:00:30]} 6. a4 {[%emt 0:00:30]} b5 {[%emt 0:00:30]} 7. axb5 {[%emt 0:00:30] D44: Semi-Slav: Botvinnik System.} cxb5 {[%emt 0:00:30]} 8. Nxb5 {[%emt 0:00:30][%cal Oe2e4] next e4! is good for White.} Qb6 $1 {[%emt 0:00:30]} 9. Na3 {[%emt 0:00:30]} (9. Qa4 $2 Bd7 10. Qxc4 (10. Bxf6 $2 Bxb5 11. Qc2 Bb4+ 12. Kd1 gxf6 $19) 10... Qxb5 $19) 9... Bxa3 {[%emt 0:00:30]} 10. Qa4+ {[%emt 0:00:30]} Nc6 $1 {[%emt 0:00:30]} 11. Qxa3 {[%emt 0:00:30]} (11. Rxa3 Bd7 12. Qc2 Rb8 $17) 11... Ne4 {[%emt 0:00:30]} 12. e3 {[%emt 0:00:30]} f6 {[%emt 0:00:30]} 13. Bf4 {[%emt 0:00:30][%cal Bg5f4,Bf4c7,Bc7a5,Ba5d2][%mdl 32]} Nb4 {[%emt 0:00:30] [#] Hoping for ...Nc2+.} 14. Rc1 {[%emt 0:00:30] Against Nc2+} Ba6 $1 {[%emt 0:00:30] [#] The position is equal.} 15. Qa4+ $146 {[%emt 0:00:30]} ({Predecessor:} 15. Bc7 Qxc7 16. Qxb4 Rb8 17. Qa4+ Bb5 18. Qa3 Qe7 19. Qa5 Nd6 20. Nd2 O-O 21. Nxc4 {½-½ (60) Martirosyan,H (2624)-Sethuraman,S (2620) Riga 2021}) 15... Ke7 $1 {[%emt 0:00:30]} 16. Bc7 {[%emt 0:00:30]} Qb7 {[%emt 0:00:30]} (16... Qxc7 17. Qxb4+ Qd6 18. Qa4 $14) 17. Ba5 {[%emt 0:00:30] Dancing on a razor blade.} ({Don't blunder} 17. Bxc4 $2 Rhc8 18. O-O (18. Bxa6 $2 Nxa6 19. O-O Nxc7 $19) 18... Rxc7 $19) 17... Rab8 {[%emt 0:00:30]} 18. Be2 {[%emt 0:00:30]} ({Not} 18. Bxc4 $2 Rhc8 19. O-O Rxc4 $19) 18... Rhc8 {[%emt 0:00:30] ...c3 is the strong threat.} 19. O-O {[%emt 0:00:30] Threatens to win with Bxb4+.} Nd3 {[%emt 0:00:30]} 20. Bxd3 {[%emt 0:00:30]} cxd3 {[%emt 0:00:30]} 21. Nd2 $36 {[%emt 0:00:30][%mdl 2048] White has some pressure.} Nxd2 {[%emt 0:00:30]} 22. Bxd2 {[%emt 0:00:30]} Bb5 {[%emt 0:00:30]} 23. Qb3 {[%emt 0:00:30]} a6 {[%emt 0:00:30]} 24. f3 {[%emt 0:00:30]} Kf7 {[%emt 0:00:30]} 25. Rc5 {[%emt 0:00:30]} Rxc5 {[%emt 0:00:30]} 26. dxc5 {[%emt 0:00:30]} Bc6 {[%emt 0:00:30] An interesting draw.  Weighted Error Value: White=0.01 (flawless) /Black=0.01 (flawless)} 1/2-1/2

[Event "Menorca Open-A 2022"]
[Site "Menorca"]
[Date "2022.04.22"]
[Round "4.2"]
[White "Santos Latasa, Jaime"]
[Black "Sethuraman, S.P."]
[Result "1/2-1/2"]
[ECO "D11"]
[WhiteElo "2656"]
[BlackElo "2610"]
[Annotator "TA"]
[PlyCount "66"]
[EventDate "2022.04.20"]
[EventType "swiss"]
[EventCountry "ESP"]
[SourceTitle "playchess.com"]
[Source "ChessBase"]
[SourceQuality "1"]
[TimeControl "5400+30"]

{[%evp 13,66,15,21,22,20,13,22,12,19,0,0,6,4,-17,-19,-18,0,0,0,0,20,12,24,0,17,0,7,3,31,13,12,14,25,22,10,17,27,15,53,53,105,0,13,1,53,13,10,8,13,13,14,0,0,3,6]} 1. d4 {[%emt 0:00:03]} d5 {[%emt 0:02:36]} 2. c4 {[%emt 0:00:29]} c6 {[%emt 0:00:07]} 3. Nf3 {[%emt 0:00:11]} Nf6 {[%emt 0:00:06]} 4. e3 {[%emt 0:00:11]} Bg4 {[%emt 0:00:06]} 5. h3 {[%emt 0:00:23]} Bh5 {[%emt 0:00:06]} 6. Nc3 {[%emt 0:00:11]} e6 {[%emt 0:00:16]} 7. g4 {[%emt 0:00:34]} Bg6 {[%emt 0:00:13]} 8. Ne5 {[%emt 0:00:13] D11: Slav Defence: 3 Nf3 sidelines and 3...Nf6 4 e3 Bg4.} Nbd7 {[%emt 0:00:06]} 9. Nxg6 {[%emt 0:00:08]} hxg6 {[%emt 0:00:04]} 10. Bd2 {[%emt 0:01:07]} Bb4 {[%emt 0:00:29]} 11. cxd5 {[%emt 0:02:39]} exd5 {[%emt 0:01:26]} 12. f3 {[%emt 0:02:23]} Bd6 {[%emt 0:00:08] [#]} 13. Bd3 $146 {[%emt 1:28:28]} ({Predecessor:} 13. Qb3 Bg3+ 14. Kd1 b5 15. Rc1 Bd6 16. e4 dxe4 17. Nxe4 Nxe4 18. fxe4 Rc8 19. e5 {1-0 (38) Eljanov,P (2650)-Smirnov,A (2604) Wijk aan Zee 2020}) 13... Bg3+ {[%emt 0:26:53]} 14. Ke2 {[%emt 0:00:00][%cal Be1e2,Be2d1,Bd1c2,Bc2b1][%mdl 32]} Qe7 {[%emt 0:04:12]} 15. Qg1 {[%emt 0:00:00]} Bc7 {[%emt 0:05:57]} 16. Kd1 {[%emt 0:00:00]} Nf8 {[%emt 0:00:23]} 17. Kc2 {[%emt 0:00:00]} Ne6 {[%emt 0:01:10]} 18. Rc1 {[%emt 0:00:00]} O-O-O {[%emt 0:01:26]} 19. Kb1 {[%emt 0:00:00]} Kb8 {[%emt 0:54:16]} 20. h4 {[%emt 0:00:00]} Nd7 {[%emt 0:00:00]} 21. Qf2 {[%emt 0:00:00]} Nb6 {[%emt 0:00:00]} 22. Ne2 {[%emt 0:00:00]} c5 {[%emt 0:00:00]} 23. b3 {[%emt 0:00:00]} Bd6 {[%emt 0:00:00]} 24. dxc5 {[%emt 0:00:00]} Nxc5 {[%emt 0:00:00][%cal Be6c5,Bc5a6,Ba6b4,Bb4c2][%mdl 32]} (24... Bxc5 {with more complications.} 25. Bc3 Rc8 26. Ba1 Nd7) 25. Bc2 {[%emt 0:00:00]} Na6 {[%emt 0:00:00]} 26. Nd4 {[%emt 0:00:00]} Bb4 {[%emt 0:00:00] [#]} (26... Ba3 $14) 27. g5 {[%emt 0:00:00]} (27. h5 $1 $16) 27... Bxd2 {[%emt 0:00:00]} (27... Ba3 $5 {[%cal Ra3c1]}) 28. Qxd2 {[%emt 0:00:00]} Qb4 {[%emt 0:00:00]} (28... Rde8 $11) 29. Qxb4 {[%emt 0:00:00]} Nxb4 {[%emt 0:00:00] The position is equal.} 30. a3 {[%emt 0:00:00]} Nxc2 {[%emt 0:00:00]} 31. Kxc2 {[%emt 0:00:00]} Rc8+ {[%emt 0:00:00]} 32. Kd2 {[%emt 0:00:00]} Rxc1 {[%emt 0:00:00]} 33. Kxc1 {[%emt 0:00:00]} Nc8 {[%emt 0:00:00] Weighted Error Value: White=0.12 (very precise) /Black=0.14 (very precise)} 1/2-1/2

[Event "Menorca Open-A 2022"]
[Site "Menorca"]
[Date "2022.04.22"]
[Round "4.3"]
[White "Heimann, Andreas"]
[Black "Gukesh D"]
[Result "0-1"]
[ECO "E11"]
[WhiteElo "2583"]
[BlackElo "2637"]
[Annotator "TA"]
[PlyCount "142"]
[EventDate "2022.04.20"]
[EventType "swiss"]
[EventCountry "ESP"]
[SourceTitle "playchess.com"]
[Source "ChessBase"]
[SourceQuality "1"]
[TimeControl "5400+30"]

{[%evp 12,142,3,25,43,32,27,39,43,48,47,34,45,46,49,18,63,28,41,0,21,25,12,0,0,0,-17,-12,-9,-10,-26,-62,-20,-13,-14,-11,-11,-108,-78,-108,-108,-236,-201,-222,-235,-221,-190,-258,-232,-286,-275,-286,-286,-279,-272,-270,-256,-225,-247,-256,-250,-201,-204,-270,-271,-314,-296,-295,-281,-274,-274,-484,-467,-901,-925,-696,-652,-1189,-1095,-1277,-1279,-1206,-970,-970,-906,-669,-615,-911,-878,-2656,-2425,-1954,-1829,-1615,-770,-7303,-6535,-5999,-4785,-29953,-29957,-29964,-29956,-29956,-29956,-29956,-12443,-29971,-29972,-29978,-29972,-29975,-29976,-29974,-29975,-29976,-29977,-29976,-29977,-29978,-29977,-29986,-29987,-29987,-29988,-29988,-29989,-29989,-29990,-29990,-29991,-29991,-29992]} 1. d4 {[%emt 0:01:12]} Nf6 {[%emt 0:00:55]} 2. c4 {[%emt 0:00:05]} e6 {[%emt 0:00:33]} 3. Nf3 {[%emt 0:00:05]} d5 {[%emt 0:00:37]} 4. g3 {[%emt 0:00:06]} Bb4+ {[%emt 0:04:40]} 5. Bd2 {[%emt 0:00:06]} a5 {[%emt 0:01:36]} 6. Bg2 {[%emt 0:01:23]} O-O {[%emt 0:00:07]} 7. Qc2 {[%emt 0:00:31]} c5 {[%emt 0:00:06] E11: Bogo-Indian.} 8. cxd5 {[%emt 0:00:06] The main line 8.cxd5 scores better than 8.dxc5.} cxd4 {[%emt 0:00:06]} 9. Nxd4 {[%emt 0:00:16]} Qb6 {[%emt 0:00:06] White is slightly better.} 10. e3 {[%emt 0:00:19]} exd5 {[%emt 0:00:08]} 11. O-O {[%emt 0:01:04]} Nc6 {[%emt 0:00:03]} 12. Nxc6 {[%emt 0:00:22]} bxc6 {[%emt 0:00:02]} 13. Nc3 {[%emt 0:04:22]} (13. Bc3 {keeps more tension.} Ba6 14. Rc1 Nd7 15. Bd4) 13... h5 {[%emt 0:00:51][%cal Bh7h5,Bh5h4,Bh4h3][%mdl 32]} 14. Na4 {[%emt 0:05:49]} (14. a3 $5 {[%cal Ra3b4]} Bd6 15. Na4 $14) 14... Qd8 {[%emt 0:00:06][%cal Oh5h4] [#]} 15. b3 $146 {[%emt 0:07:35]} (15. Qxc6 $2 Bd7 16. Qc2 Bxd2 17. Qxd2 Bxa4 $19) ({Predecessor:} 15. Rfc1 h4 16. Bxb4 axb4 17. b3 h3 18. Bh1 Rb8 19. Qxc6 d4 20. Qc5 d3 21. Rd1 {0-1 (29) Karthik,V (2485)-Gukesh,D (2614) New Delhi 2022}) 15... h4 {[%emt 0:19:01]} 16. Bxb4 {[%emt 0:30:10]} axb4 {[%emt 0:00:03]} 17. Rfd1 {[%emt 0:13:18]} h3 {[%emt 0:05:00]} 18. Bf3 {[%emt 0:01:24]} Ng4 {[%emt 0:19:30]} 19. Qxc6 {[%emt 0:05:11] [#]} Ne5 $1 {[%emt 0:00:18]} 20. Qxd5 {[%emt 0:00:18]} Qf6 {[%emt 0:00:46]} 21. Be2 {[%emt 0:06:58]} (21. Qxa8 Nxf3+ 22. Kh1 Nd2 $19) 21... Bg4 {[%emt 0:02:42]} 22. Bxg4 {[%emt 0:07:39]} Nxg4 {[%emt 0:00:02]} 23. Rf1 {[%emt 0:00:25]} Rad8 $36 {[%emt 0:06:03][%mdl 3072] Black has compensation. Black is pushing.} 24. Qe4 {[%emt 0:00:04]} (24. Qh5 $11 {remains equal.} Qf3 25. Qxh3) 24... Ne5 $1 $17 {[%emt 0:00:38] &Nero is more active.} 25. f4 {[%emt 0:03:21]} Ng4 {[%emt 0:00:18]} 26. f5 {[%emt 0:00:17] White does not recover from this.} (26. Qf3 $17 {was called for.} Qg6 27. f5) 26... Qg5 $19 {[%emt 0:02:50]} 27. Qf4 {[%emt 0:01:31]} (27. Qxb4 Qxe3+ 28. Kh1 Qe2) 27... Qh5 {[%emt 0:08:50] aiming for ...Rd2.} 28. e4 {[%emt 0:01:23]} (28. Qxb4 Nxe3 29. g4 Qh4 $19) 28... g5 {[%emt 0:04:01]} 29. Qf3 {[%emt 0:06:11]} (29. fxg6 $142 fxg6 30. Rad1 $1) 29... Rd2 {[%emt 0:00:26]} 30. Nb6 {[%emt 0:00:03]} Rg2+ {[%emt 0:04:05]} (30... Rxh2 31. Nd5 Rg2+ 32. Kh1 Rh2+ 33. Kg1 Rg2+ 34. Kh1 Rh2+ 35. Kg1 $11) 31. Kh1 {[%emt 0:00:04]} Rxh2+ {[%emt 0:00:07]} 32. Kg1 {[%emt 0:00:00]} Rg2+ $1 {[%emt 0:06:47]} 33. Kh1 {[%emt 0:00:04] [#]} Nf6 {[%emt 0:04:10]} 34. Nd5 {[%emt 0:00:04]} ({Don't play} 34. Qxh5 Nxh5 35. Rf3 g4 $19) 34... Qxf3 {[%emt 0:00:34] Really sharp!} 35. Nxf6+ {[%emt 0:00:04]} Kg7 {[%emt 0:00:04][%cal Og2h2]} 36. Rxf3 {[%emt 0:00:06]} Kxf6 {[%emt 0:00:07][%mdl 4096] Endgame KRR-KRR} 37. g4 {[%emt 0:03:20]} Rxg4 {[%emt 0:00:42]} 38. Rxh3 {[%emt 0:00:02]} Rxe4 {[%emt 0:00:27] Hoping for ...Rfe8.} 39. Rf1 {[%emt 0:00:06]} Re2 {[%emt 0:02:00] And now ...Ra8 would win.} 40. Rh6+ {[%emt 0:00:48] [#]} Kg7 $1 {[%emt 0:05:42]} 41. Rh5 {[%emt 0:01:30]} (41. Ra6 {was the only defense.}) 41... f6 {[%emt 0:01:22] Strongly threatening ...Rh8.} 42. Rh2 {[%emt 0:01:20]} (42. Kg1 $142 Rxa2 43. Rc1) 42... Rh8 {[%emt 0:02:07]} 43. Rxh8 {[%emt 0:00:43]} Kxh8 {[%emt 0:00:01] KR-KR} 44. Rc1 {[%emt 0:01:45]} Rxa2 {[%emt 0:00:25]} 45. Rc4 {[%emt 0:00:14]} Rf2 {[%emt 0:00:22]} 46. Rxb4 {[%emt 0:00:07]} Rxf5 {[%emt 0:00:04]} 47. Rb7 {[%emt 0:00:04]} Kg8 {[%emt 0:01:18]} 48. Kg2 {[%emt 0:00:11]} Re5 {[%emt 0:00:58]} 49. b4 {[%emt 0:01:30]} Kf8 {[%emt 0:00:58]} 50. b5 {[%emt 0:00:36]} Re7 {[%emt 0:00:01]} 51. Rb8+ {[%emt 0:00:06]} Kg7 {[%emt 0:00:17] Threatens to win with ...Re3.} 52. Kf3 {[%emt 0:00:28] Prevents Re3+.} Re5 {[%emt 0:02:09] White must now prevent ...Kg6.} 53. b6 {[%emt 0:01:23]} Rb5 {[%emt 0:00:04] ...Rb4 is the strong threat.} 54. Ke4 {[%emt 0:00:23]} f5+ {[%emt 0:00:57][%cal Bf6f5,Bf5f4,Bf4f3][%mdl 32]} 55. Kd4 {[%emt 0:00:03]} g4 {[%emt 0:00:31]} 56. Rb7+ {[%emt 0:00:07]} Kh6 {[%emt 0:00:56]} 57. Ke3 {[%emt 0:01:07]} Rb4 {[%emt 0:00:12]} 58. Rb8 {[%emt 0:00:05]} Kg7 {[%emt 0:00:31] ( -> ...f4+)} 59. b7 {[%emt 0:01:01]} f4+ {[%emt 0:00:46] Black mates.} 60. Ke2 {[%emt 0:00:56]} Rb2+ {[%emt 0:00:14]} 61. Kf1 {[%emt 0:00:25]} g3 {[%emt 0:01:04]} ({Inferior is} 61... Kf7 62. Rh8 Rb1+ 63. Ke2 f3+ 64. Kf2 (64. Ke3 Rb3+ 65. Kf2 Rb2+ 66. Kg3 Rg2+ 67. Kf4 f2 $11) 64... Rb2+ 65. Kg3 Rg2+ 66. Kf4 $11) 62. Rc8 {[%emt 0:00:35]} Rxb7 {[%emt 0:00:09]} 63. Rc4 {[%emt 0:00:05]} Rf7 {[%emt 0:00:15]} 64. Kg2 {[%emt 0:00:49]} f3+ {[%emt 0:01:05]} 65. Kf1 {[%emt 0:00:01]} Rf6 {[%emt 0:00:21]} 66. Rg4+ {[%emt 0:00:16]} Rg6 {[%emt 0:00:01]} 67. Rf4 {[%emt 0:00:05]} g2+ {[%emt 0:00:41]} 68. Kg1 {[%emt 0:00:04]} Rf6 {[%emt 0:00:14]} 69. Rg4+ {[%emt 0:00:05]} Kh6 {[%emt 0:00:01]} 70. Kf2 {[%emt 0:00:12]} Rg6 {[%emt 0:00:01]} 71. Rh4+ {[%emt 0:00:08]} Kg7 {[%emt 0:00:01] Weighted Error Value: White=0.74/Black=0.07 (flawless)} 0-1

[Event "Menorca Open-A 2022"]
[Site "Menorca"]
[Date "2022.04.22"]
[Round "4.4"]
[White "Adhiban, B.."]
[Black "Aryan Chopra"]
[Result "0-1"]
[ECO "E12"]
[WhiteElo "2633"]
[BlackElo "2592"]
[Annotator "TA"]
[PlyCount "68"]
[EventDate "2022.04.20"]
[EventType "swiss"]
[EventCountry "ESP"]
[SourceTitle "playchess.com"]
[Source "ChessBase"]
[SourceQuality "1"]
[TimeControl "5400+30"]

{[%evp 15,68,14,15,0,0,0,0,0,0,0,0,-3,21,10,0,0,0,0,6,4,7,7,6,0,0,0,0,0,0,-18,-16,-8,0,-31,-31,-33,-33,-33,-28,-27,-27,-88,-91,-91,-90,-511,-198,-189,-187,-197,-166,-189,-189,-746,-724]} 1. d4 {[%emt 0:03:24]} Nf6 {[%emt 0:00:07]} 2. c4 {[%emt 0:01:04]} e6 {[%emt 0:00:13]} 3. Nf3 {[%emt 0:09:13]} b6 {[%emt 0:00:09]} 4. Bf4 {[%emt 0:01:27]} Bb7 {[%emt 0:00:57]} 5. e3 {[%emt 0:00:19]} Bb4+ {[%emt 0:01:03]} 6. Nfd2 {[%emt 0:00:20]} O-O {[%emt 0:02:26]} 7. a3 {[%emt 0:00:31]} Be7 {[%emt 0:00:40]} 8. Nc3 {[%emt 0:00:10]} d5 {[%emt 0:04:14]} 9. cxd5 {[%emt 0:09:29] E12: Queen's Indian: Unusual White 4th moves, 4 a3, 4 Nc3 Bb7 5 a3 and 4 Nc3 Bb7 .} Nxd5 {[%emt 0:01:46]} 10. Nxd5 {[%emt 0:01:15]} exd5 $5 {[%emt 0:08:55][%mdl 4] An interesting side line.} 11. Bd3 {[%emt 0:13:21] The position is equal.} c5 {[%emt 0:00:32]} 12. Nf3 {[%emt 0:16:43]} Nd7 {[%emt 0:17:14][%cal Bb8d7,Bd7c5,Bc5d3][%mdl 32] [#]} 13. h4 $146 {[%emt 0:00:05]} ({Predecessor:} 13. O-O c4 14. Bc2 b5 15. Qe2 Qb6 16. Bf5 Rfd8 17. a4 b4 18. a5 Qb5 19. Rfc1 g6 20. Bh3 {½-½ (60) Mary,P (2503)-Moser,R (2303) ICCF email 2012}) 13... cxd4 {[%emt 0:03:40]} 14. Nxd4 {[%emt 0:00:19]} Nc5 {[%emt 0:00:11]} 15. h5 {[%emt 0:01:07]} Bf6 {[%emt 0:08:17]} 16. O-O {[%emt 0:11:31]} Bxd4 {[%emt 0:05:13]} 17. exd4 {[%emt 0:00:05]} Nxd3 {[%emt 0:00:05]} 18. Qxd3 {[%emt 0:00:03]} Qh4 {[%emt 0:00:06]} 19. Qf3 {[%emt 0:08:29]} h6 {[%emt 0:00:08]} 20. Rfe1 {[%emt 0:00:39]} Rfe8 {[%emt 0:01:07]} 21. Rac1 {[%emt 0:01:03]} Re4 {[%emt 0:03:03]} 22. Be3 {[%emt 0:10:41] [#] Black must now prevent Rc7.} Bc8 {[%emt 0:04:21]} 23. Rc7 {[%emt 0:02:49]} Be6 {[%emt 0:00:04]} 24. Bd2 {[%emt 0:05:29]} Rxe1+ {[%emt 0:10:50]} 25. Bxe1 {[%emt 0:00:03]} Qxd4 {[%emt 0:00:07]} 26. Bc3 {[%emt 0:00:02]} Qh4 {[%emt 0:00:06]} 27. Qe3 {[%emt 0:00:15][%cal Oc3g7]} Qe4 {[%emt 0:09:33]} 28. Qg3 {[%emt 0:03:22]} (28. Qxe4 $11 {keeps the balance.} dxe4 29. Kh2) 28... d4 $17 {[%emt 0:00:50]} 29. Bd2 {[%emt 0:00:01]} Qe2 {[%emt 0:02:00]} 30. Bf4 {[%emt 0:00:55][%mdl 8192] This move loses the game for White.} (30. Qf3 $17 Qxf3 31. gxf3) 30... Qd1+ $2 {[%emt 0:03:16]} (30... d3 31. Bxh6 Qd1+ 32. Kh2 Qxh5+ 33. Kg1 Qxh6 34. Qxd3 Qh4) 31. Kh2 $19 {[%emt 0:00:03]} Qxh5+ {[%emt 0:00:03]} 32. Kg1 {[%emt 0:00:04]} Bf5 {[%emt 0:01:51] Threatens to win with ...Qd1+.} 33. Be5 {[%emt 0:01:18][%csl Ge5][%cal Rg3g7] [#]} Bg6 $1 {[%emt 0:00:07]} 34. Qf4 $2 {[%emt 0:01:19]} (34. Qf3 Qxf3 35. gxf3) 34... Re8 {[%emt 0:00:34] Weighted Error Value: White=0.74/Black=0.17 (very precise)} 0-1